Cogmind - Beta 16 @@@ ROGUE MODE // 2025.11.02 @ 18:01:22 Player: Rocko1345 Result: Destroyed by UU-ZFR(R) with Subdweller Laser Performance ------------- Evolutions (0) 0 Regions Visited (2) 400 Robots Destroyed (5) 25 Value Destroyed (176) 176 Prototype IDs (0) 0 Alien Tech Used (0) 0 Bonus (0) 0 TOTAL SCORE: 601 Bonus ------- None Cogmind --------- Core Integrity 0/250 Matter 300/300 Energy 99/100 System Corruption 0% Temperature Cool (6) Movement Rolling (110) Location -10/Subcaves Parts ------- > --- POWER (1) -------- (None) > --- PROPULSION (2) --- Aluminum Leg Subdweller Monowheel > --- UTILITY (2) ------ Medium Storage Unit Machine Analyzer > --- WEAPON (2) ------- Assault Rifle Subdweller Machine Gun > --- INVENTORY (10) --- Light Treads Light Treads Disposable Heat Sink Subdweller Optics Makeshift System Shield Assault Rifle Datajack Scrap Shield Fragment (48) Scrap Shield Fragment (44) Scrap Shield Fragment (43) Peak State ------------ > --- POWER ------------ Ion Engine > --- PROPULSION ------- Aluminum Leg Subdweller Monowheel > --- UTILITY ---------- Medium Storage Unit Machine Analyzer > --- WEAPON ----------- Assault Rifle Assault Rifle > --- INVENTORY -------- Light Treads Light Treads Disposable Heat Sink Disposable Heat Sink Subdweller Optics Datajack Scrap Shield Fragment Scrap Shield Fragment Scrap Shield Fragment [Rating: 11] Favorites ----------- Power Ion Engine Engine Ion Engine Propulsion Aluminum Leg Leg Aluminum Leg Wheel Subdweller Monowheel Utility Medium Storage Unit Storage Medium Storage Unit Processor Targeting Computer Weapon Assault Rifle Ballistic Gun Assault Rifle Build | -11 -10 -10 ------- Run | Yrd Mat Sub Slots Evolved . | . . . Power . | . . . Propulsion . | . . . Utility . | . . . Weapon . | . . . Parts Attached 11 | 6 2 3 Power 1 | 1 . . Engine 1 | 1 . . Core . | . . . Reactor . | . . . Propulsion 3 | 2 . 1 Treads . | . . . Leg 2 | 2 . . Wheel 1 | . . 1 Hover . | . . . Flight . | . . . Utility 4 | 1 2 1 Device . | . . . Storage 2 | 1 1 . Processor 2 | . 1 1 Hackware . | . . . Protection . | . . . Artifact . | . . . Weapon 3 | 2 . 1 Energy Gun . | . . . Energy Cannon . | . . . Ballistic Gun 3 | 2 . 1 Ballistic Cannon . | . . . Launcher . | . . . Special Weapon . | . . . Impact Weapon . | . . . Slashing Weapon . | . . . Piercing Weapon . | . . . Special Melee Weapon . | . . . Unidentified Prototypes . | . . . Parts Lost 3 | . . 3 Power 1 | . . 1 Propulsion 1 | . . 1 Utility 1 | . . 1 Weapon . | . . . Highest Loss Streak 2 | . . 2 To Critical Strikes . | . . . Average Backups 3 | . 2 5 Power . | . . . Propulsion 1 | . 2 2 Utility . | . . 2 Weapon . | . . . Tool/Special . | . . . Unused Backups 7 | . . 7 Power . | . . . Propulsion 2 | . . 2 Utility 4 | . . 4 Weapon . | . . . Tool/Special 1 | . . 1 Average Slot Usage (%) 94 | . 99 87 Engine 12 | . 14 10 Leg 22 | . 28 15 Wheel 2 | . . 6 Storage 14 | . 14 14 Processor 12 | . 13 11 Ballistic Gun 28 | . 28 28 Peak Build Rating 11 | 6 7 11 Average Rating 7 | 4 6 9 On Entrance 4 | . 6 7 Avg Prop Armor Cover (%) 9 | . . 9 Naked Turns . | . . . Heaviest Build 19 | 14 19 19 Greatest Support 20 | 20 20 20 Greatest Overweight (x) 1 | . . 1 Average Overweight (x) . | . . . Largest Inventory Capacity 10 | 8 10 10 Average Capacity 9 | 7 9 10 Most Carried 10 | 2 3 10 Average Carried 4 | . 2 7 Final Capacity 10 | 8 10 10 Final Carried 10 | 2 3 10 Class Distribution -------------------- 100% | Mutant Dominant Class ---------------- Mutant | -10/Materials Mutant | -10/Subcaves Resources | -11 -10 -10 ----------- Run | Yrd Mat Sub Matter Collected 417 | 236 . 181 Remotely . | . . . Salvage Created 221 | . 23 198 Parts 12 | . 2 10 Haulers Intercepted . | . . . Recyclers Shooed . | . . . Parts Field Recycled . | . . . Retrieved Matter . | . . . Parts Self-Destructed . | . . . Prevented . | . . . Parts Restored . | . . . Kills | -11 -10 -10 ------- Run | Yrd Mat Sub Combat Hostiles Destroyed 4 | . . 4 Guns 4 | . . 4 Classes Destroyed 2 | . 1 1 Watcher 1 | . 1 . Subdweller 4 | . . 4 Best Kill Streak 2 | . 1 2 Combat Bots Only 2 | . . 2 Max Kills in Single Turn 1 | . 1 1 Gunslinging . | . . . Exploded . | . . . Melee . | . . . Uniques/NPCs Destroyed . | . . . Combat | -11 -10 -10 -------- Run | Yrd Mat Sub Hostile Shots Fired 35 | . . 35 Missed 7 | . . 7 Hits 28 | . . 28 Projectile 28 | . . 28 Damage Taken 699 | . . 699 Core 263 | . . 263 Absorbed by Shields . | . . . Core Remaining (%) 100 | 100 . . Volleys Fired 21 | . 1 20 Largest 2 | . 2 2 Hottest 50 | . 40 50 Shots Fired 42 | . 2 40 Gun 42 | . 2 40 Cannon . | . . . Launcher . | . . . Special . | . . . Kinetic 42 | . 2 40 Thermal . | . . . Explosive . | . . . Electromagnetic . | . . . Robot Hit Streak 16 | . 1 16 Robot Miss Streak 2 | . . 2 Penetration Max . | . . . Secondary Targets . | . . . Shots Hit Robots 33 | . 1 32 Core Hits 10 | . 1 9 Critical Kills . | . . . Critical Parts Destroyed . | . . . Critical Strikes . | . . . Melee Attacks . | . . . Impact . | . . . Slashing . | . . . Piercing . | . . . Sneak Attacks . | . . . Combat Hostiles . | . . . Follow-up Attacks . | . . . Damage Inflicted 456 | . 26 430 Guns 456 | . 26 430 Cannons . | . . . Explosions . | . . . Melee . | . . . Ramming . | . . . Kinetic 456 | . 26 430 Thermal . | . . . Explosive . | . . . Electromagnetic . | . . . Impact . | . . . Slashing . | . . . Piercing . | . . . Highest Corruption . | . . . Average Corruption . | . . . Corruption Purged . | . . . Corruption Blocked . | . . . Overload Shots . | . . . Overflow Damage . | . . . Projectiles . | . . . Explosions . | . . . Melee . | . . . Knockbacks . | . . . Impact . | . . . Kinetic . | . . . Secondary . | . . . Self-Inflicted Damage . | . . . Shots . | . . . Rammed . | . . . Targets Rammed . | . . . Kicked . | . . . Crushed . | . . . Highest Temperature . | . . . Average Temperature . | . . . Received Heat Transfer 123 | . . 123 Siege Activations . | . . . Martial Activations . | . . . Shielding Activations . | . . . Robots Disrupted . | . . . Combat Hostiles . | . . . Robots Corrupted . | . . . Combat Hostiles . | . . . Parts Fried . | . . . Impact Corruptions . | . . . Robots Melted . | . . . Combat Hostiles . | . . . Parts Melted . | . . . Heat Transferred . | . . . Parts Sabotaged . | . . . Parts Stolen . | . . . Parts Stripped . | . . . Power Chain Reactions . | . . . Alert | -11 -10 -10 ------- Run | Yrd Mat Sub Maximum Alert Level . | . . . Low Security (%) 100 | 100 100 . Level 1 . | . . . Level 2 . | . . . Level 3 . | . . . Level 4 . | . . . Level 5 . | . . . High Security . | . . . Max Security . | . . . Peak Influence 9 | . 9 . Initial . | . . . Average . | . . . Influence Increases 21 | . 21 . Destroy 0b10 Robot/NC 5 | . 5 . Destroy Leader 2 | . 2 . Successful Hack 14 | . 14 . Influence Decreases 21 | . 21 . Time Decay 21 | . 21 . Squads Dispatched . | . . . Investigation . | . . . Extermination . | . . . Reinforcement . | . . . Assault . | . . . Garrison . | . . . Intercept . | . . . Searches Triggered . | . . . Construction Impeded . | . . . Haulers Reinforced . | . . . Active Scanning Responses . | . . . Cargo Convoy Interrupts . | . . . Stealth | -11 -10 -10 --------- Run | Yrd Mat Sub Distress Signals . | . . . Communications Jammed . | . . . Distress Signals . | . . . Times Spotted 7 | . 1 6 Peak Tracking Total 2 | . 1 2 Tactical Retreats . | . . . Traps | -11 -10 -10 ------- Run | Yrd Mat Sub Traps Triggered . | . . . Indirectly . | . . . Trap Hack Attempts . | . . . Triggered . | . . . Disarmed . | . . . Reprogrammed . | . . . Reused . | . . . Traps Extracted . | . . . Installed . | . . . Triggered . | . . . Machines | -11 -10 -10 ---------- Run | Yrd Mat Sub Machines Disabled . | . . . Max in Single Turn . | . . . Machines Repaired . | . . . Machines Dismantled . | . . . Machines Sabotaged . | . . . Overloaded Fab Kills . | . . . Hacking | -11 -10 -10 --------- Run | Yrd Mat Sub Machines Accessed 2 | . 2 . Terminals 2 | . 2 . Fabricators . | . . . Repair Stations . | . . . Recycling Units . | . . . Scanalyzers . | . . . Garrison Access . | . . . Total Hacks 6 | . 6 . Successful 4 | . 4 . Failed 2 | . 2 . Catastrophic . | . . . Database Lockouts . | . . . Manual 5 | . 5 . Terminals 6 | . 6 . Fabricators . | . . . Repair Stations . | . . . Recycling Units . | . . . Scanalyzers . | . . . Garrison Access . | . . . Terminal Hacks 2 | . 2 . Terminal Index 1 | . 1 . Locate Traps 1 | . 1 . Fabricator Hacks . | . . . Repair Station Hacks . | . . . Recycling Unit Hacks . | . . . Scanalyzer . | . . . Garrison Access Hacks . | . . . Unauthorized Hacks 2 | . 2 . Terminals 2 | . 2 . Botnet 2 | . 2 . Fabricators . | . . . Repair Stations . | . . . Recycling Units . | . . . Scanalyzers . | . . . Garrison Access . | . . . Data Cores Recovered . | . . . Used . | . . . Hacking Detections 2 | . 2 . Full Trace Events . | . . . Feedback Events . | . . . Feedback Blocked . | . . . Robot Schematics Acquired . | . . . Robots Built . | . . . Authchips . | . . . Time . | . . . Total Robot Build Rating . | . . . Part Schematics Acquired . | . . . Parts Built . | . . . Authchips . | . . . Time . | . . . Total Part Build Rating . | . . . Part Studies Acquired . | . . . Parts Repaired . | . . . Time . | . . . Parts Recycled . | . . . Recycled Matter . | . . . Retrieved Matter . | . . . Retrieved Components . | . . . Parts Scanalyzed . | . . . Part Schematics Acquired . | . . . Parts Damaged . | . . . Bothacking | -11 -10 -10 ------------ Run | Yrd Mat Sub Used RIF Installer . | . . . Robots Hacked . | . . . Non-combat . | . . . Combat . | . . . Robot Hacks Applied . | . . . Relay Couplers Released . | . . . Fabnet Peak Effective % . | . . . Robots Rewired . | . . . Allies Hacked . | . . . Hacks Repelled . | . . . Allies | -11 -10 -10 -------- Run | Yrd Mat Sub Total Allies . | . . . Largest Group . | . . . Highest-Rated Group . | . . . Highest-Rated Ally . | . . . Total Orders . | . . . Ally Attacks . | . . . Total Damage . | . . . Kills . | . . . Allies Corrupted . | . . . Allies Melted . | . . . Intel | -11 -10 -10 ------- Run | Yrd Mat Sub Active Infowar (turns) 295 | . . 295 Machine Analysis 295 | . . 295 Robot Analysis Total . | . . . Derelict Logs Recovered . | . . . Drone Launches . | . . . Drone Recoveries . | . . . Exploration | -11 -10 -10 ------------- Run | Yrd Mat Sub Turns Passed 977 | 70 537 370 Spaces Moved 443 | 52 176 215 Core 4 | 4 . . Treads . | . . . Legs 314 | 48 176 90 Wheels 125 | . . 125 Hover . | . . . Flight . | . . . Fastest Speed 50 | 50 120 110 Average Speed 127 | 114 120 137 Slowest Speed 190 | 120 120 190 Overloaded Moves . | . . . Propulsion Burnouts . | . . . Robots Hopped . | . . . Potential Cave-ins . | . . . Cave-ins Triggered . | . . . Exploration Rate (%) 16 | 4 32 13 Regions Visited 2 Branch Regions 1 Pre-discovered Areas . | . . . Known Exits Taken . | . . . Unknown Exits Taken 2 | 1 1 . Scrap Searched 5 | . . 5 Spaces Dug . | . . . Terrain Destroyed . | . . . Melee . | . . . Projectile . | . . . AOE . | . . . Terrain Rammed . | . . . Walls Destroyed . | . . . Machines Disabled . | . . . Actions | -11 -10 -10 --------- Run | Yrd Mat Sub Total 808 | 60 499 249 Wait 322 | . 319 3 Move 441 | 51 175 215 Hop . | . . . Pick Up 11 | 3 1 7 Fast Attach 8 | 5 1 2 Attach 1 | 1 . . Detach . | . . . Swap 2 | . 1 1 Drop 2 | . 1 1 Fire 21 | . 1 20 Melee . | . . . Ram . | . . . Kick . | . . . Crush . | . . . Escape Stasis . | . . . Rewire . | . . . Trap . | . . . Miscellaneous . | . . . Route ------- -11/Scrapyard -10/Materials (discovered 3 exits: [*Mat] / [*Min] / [*Sub]) -10/Subcaves (discovered 1 exit: [*Mat]) History --------- Turn | Location | Event 46 | -11/Scrapyard | Discovered new exit (range 14) 71 | -11/Scrapyard | Entered Materials 154 | -10/Materials | Discovered new exit (range 8) 277 | -10/Materials | Discovered new exit (range 4) 316 | -10/Materials | Build established: Mutant 352 | -10/Materials | Discovered new exit (range 8) 608 | -10/Materials | Entered Subcaves 608 | -10/Subcaves | Discovered new exit (range 13) 609 | -10/Subcaves | Approached by a straggling Scientist 659 | -10/Subcaves | Core integrity fell below 50% 884 | -10/Subcaves | Core integrity fell below 20% 978 | -10/Subcaves | Destroyed by UU-ZFR(R) with Subdweller Laser Last Messages --------------- 00911_ Searching scrap... 00911_ Found Sub. Shrapnel Launcher. 00911_ Found 65 Matter. 00912_ Acquired 30 matter. 00919_ Subatomizers dissect the Sub. Machine Gun. 00927_ Searching scrap... 00927_ Found Sub. Beam Cannon. 00927_ Found 32 Matter. 00928_ Searching scrap... 00928_ Found Mak. System Shield. 00928_ Found 46 Matter. 00930_ Dropped Disposable Heat Sink. 00930_ Acquired Mak. System Shield. 00933_ Subatomizers dissect the Sub. Machine Gun. 00940_ Searching scrap... 00940_ Found Flamer. 00940_ Found 69 Matter. 00941_ Searching scrap... 00941_ Found Slug Cannon. 00941_ Found 43 Matter. Map ----- +----------------------------------------------------+ | ???????????????????????#### #???????? ?????? | | ???????????????????????# #???????? ????? | | ???????????????????????## #???????? ????? | | ????????????????????????## #????????? ?????? | | ???????????????????????### #????????? ????????? | | ?????????????????????### #???????????????????? | | ?????????????????????# ## ##??????????????????? | | ?????????????????????? # # #??????????????????? | | ??????????????????????# # # #??????????????????? | | ??????????????????????# ##?????????????????? | | ??????????????????????## # ##????????????????? | | ?????????????????????### # #????????????????? | | ?????????????????????# #????????????????? | | ?????????????????????## ## ## #??????????? | | ??????????????????????# #???????????? | | ??????????????????????## #???????????? | | ???????????????????????## # # ## #???????????? | | ???????????????????????# ### ###??????????????? | | ???????????????????????## #### #?? #???????????? | | ??????????????????????## # # ##???????????? | | ??????????????????????# #???????????? | | ?????????????????????## ##???????????? | | ???????????#####?##### ## ## ##????????????? | | ??????????##%""### "### #??#?##?????????????? | | ??????????#%| ""#%! "### #???????????????????? | | ??????????# ] #%] ## @ ##???????????????????? | | ??????????# # "## #????????????????????? | | ??????????# &" !![# ##???????????????????? | | ??????????#"" & # ##%## #???????????????????? | | ??????????#" ### #&%# #???????????????????? | | ??????????### ?# # ### #??????????????? | | ????????????##### # R " "#?????????????? | | ????????????# # #<< ## "" " "#????????????? | | ???????????# # ###< #? ##" " ????????????? | | ???????????$ ?# ## #?"#?### #????????????? | | ??????????# "??#" ]"### #????? ????????????? | | ??????????#????##"%###?# ?????? ???????????? | | ????????????????####???#R ??????? ???????????? | | ??????????????????????? #????????????????????? | | ??????????????????????? ###????????????????????? | | ??????????????????????? ##??????????????????????? | | ??????????????????????? ##???????????????????????? | | ??????????????????????? ?????????????????????????? | | ???????????????????????#?????????????????????????? | | ?????????????????????????????????????????????????? | | ?????????????????????????????????????????????????? | | ?????????????????????????????????????????????????? | | ?????????????????????????????????????????????????? | | ?????????????????????????????????????????????????? | | ?????????????????????????????????????????????????? | +----------------------------------------------------+ Best States ------------- Heat Dissipation 25 Energy Generation 10 Energy Capacity 250 Matter Stores 300 Matter Capacity 300 Sight Range 16 Terrain Scan Density 10 Evasion (%) 55 Targeting Accuracy 5 Item Schematics ----------------- None Robot Schematics ------------------ None Fabricated ------------ Nothing Repaired ---------- Nothing Studied --------- None Alien Tech Used ----------------- None Achievements -------------- None Challenges ------------ None Game ------ Seed CoordinationRecyclingSystem Manual? 0 Play Time 00:08:54 Cumulative 225.9 hours Start 2025.11.02 @ 17:54:21 End 2025.11.02 @ 18:01:22 Sessions 1 Manual Loads 0 Difficulty Rogue Special Mode None Game No. 274 Rogue 100 Adventurer 174 Explorer 0 Win Type - Total 1 Types 1/0/0/0/0/0/0/0/0/0 Lore% 61 Gallery% 59 Achievement% 41 Wizard Run 0 Options --------- Layout 0 ASCII 0 Keyboard 1 Movement Numpad Keybinds 0 Fullscreen 1 Font 18/Terminus Map View 76x50 Zoom Use 0% Tactical HUD 1 Map Filters NONE Filters NONE Steam 1 RUN: 6ddb7ceb-d867-4164-aedd-f5257e96c60a